bitfinex/quotes_ETHUSD_20251128
["timestamp","ask_amount","ask_price","bid_price","bid_amount"]
[1764329545591,0.30443427,3035.2,3034.8,7.0659201]
[1764329545780,0.30443427,3035.1,3034.8,7.0659201]
[1764329545978,0.30443427,3035.0,3034.8,7.0659201]
[1764329546182,0.30453252,3034.9,3034.8,3.77081005]
[1764329546386,0.30453252,3034.9,3034.8,3.32806115]
[1764329546591,0.30453252,3034.9,3034.8,3.29511005]
[1764329546592,1.35133252,3034.9,3034.8,3.29511005]
[1764329546764,0.79893252,3034.9,3034.8,3.29511005]
[1764329548096,0.79893252,3034.9,3034.6,0.001]
[1764329548297,0.4944,3034.7,3034.6,0.001]
[1764329548592,0.79893252,3034.7,3034.6,0.001]
[1764329548792,1.26333252,3034.7,3034.6,0.001]
[1764329550591,4.55855115,3034.7,3034.6,0.001]
[1764329550790,7.29469742,3034.7,3034.6,0.001]
[1764329550999,1.13109811,3034.6,3034.4,0.001]
[1764329551189,0.505104,3034.4,3034.3,0.001]
[1764329551392,0.0996,3034.1,3033.7,0.001]
[1764329551697,0.91093652,3034.1,3033.7,0.001]
[1764329551893,1.6556277,3034.1,3033.7,0.001]
[1764329552093,6.37907325,3034.1,3033.7,0.001]
[1764329553395,5.67709208,3034.1,3033.7,0.001]
[1764329553806,5.27158808,3034.1,3033.7,0.001]
[1764329554567,5.38198808,3034.1,3033.7,0.001]
[1764329554769,5.48158808,3034.1,3033.7,0.001]
[1764329554978,2.18571781,3034.1,3033.7,0.001]
[1764329555181,1.3605237,3034.1,3033.7,0.001]
[1764329556013,1.17983252,3034.1,3033.7,0.001]
[1764329556178,4.47570279,3034.1,3033.7,0.001]
[1764329556373,1.17983252,3034.1,3033.7,0.001]
[1764329556579,1.08023252,3034.1,3033.7,0.001]
[1764329556986,4.37610279,3034.1,3033.7,0.001]
[1764329557190,4.82689429,3034.1,3033.7,0.001]
[1764329558376,4.92649429,3034.1,3033.7,0.001]
[1764329558571,1.63062402,3034.1,3033.7,0.001]
[1764329558793,4.92649429,3034.1,3033.7,0.001]
[1764329558971,4.95870645,3034.1,3033.7,0.001]
[1764329559803,4.85910645,3034.1,3033.7,0.001]
[1764329560405,4.82689429,3034.1,3033.7,0.001]
[1764329560590,4.85910645,3034.1,3033.7,0.001]
[1764329560789,4.95870645,3034.1,3033.7,0.001]
[1764329561588,6.0575924,3034.1,3033.7,0.001]
[1764329561794,6.08980456,3034.1,3033.7,0.001]
[1764329562009,6.22187464,3034.1,3033.7,0.001]
[1764329565878,6.22107464,3034.1,3033.7,0.001]
[1764329566407,5.68350056,3034.1,3033.7,0.001]
[1764329566709,2.28803029,3034.1,3033.7,0.001]
[1764329566904,5.13310906,3034.1,3033.7,0.001]
[1764329567277,5.23270906,3034.1,3033.7,0.001]
[1764329569284,1.37283879,3034.1,3033.7,0.001]
[1764329569601,4.6364969,3034.1,3033.7,0.001]
[1764329569907,4.66870906,3034.1,3033.7,0.001]
[1764329571486,5.15710906,3034.1,3033.7,0.001]
[1764329571884,6.11195689,3034.1,3033.7,0.001]
[1764329572611,0.64724468,3034.1,3033.7,0.001]
[1764329572799,4.39930279,3034.1,3033.7,0.001]
[1764329573001,4.53111495,3034.1,3033.7,0.001]
[1764329573688,3.94311495,3034.1,3033.7,0.001]
[1764329574314,0.64724468,3034.1,3033.7,0.001]
[1764329575014,4.43151495,3034.1,3033.7,0.001]
[1764329575205,4.53111495,3034.1,3033.7,0.001]
[1764329575402,4.43151495,3034.1,3033.7,0.001]
[1764329575717,5.31380822,3034.1,3033.7,0.001]
[1764329576399,5.31580822,3034.1,3033.7,0.001]
[1764329577304,3.94511495,3034.1,3033.7,0.001]
[1764329577512,4.43351495,3034.1,3033.7,0.001]
[1764329578399,5.13390897,3034.1,3033.7,0.001]
[1764329578799,6.36460708,3034.1,3033.7,0.001]
[1764329579114,5.95910308,3034.1,3033.7,0.001]
[1764329579321,7.84376708,3034.1,3033.7,0.001]
[1764329579624,7.81155492,3034.1,3033.7,0.001]
[1764329579828,7.71195492,3034.1,3033.7,0.001]
[1764329580033,7.81155492,3034.1,3033.7,0.001]
[1764329580389,6.93957564,3034.1,3033.7,0.001]
[1764329580615,6.83997564,3034.1,3033.7,0.001]
[1764329581087,6.93957564,3034.1,3033.7,0.001]
[1764329581392,6.45117564,3034.1,3033.7,0.001]
[1764329581597,7.36111133,3034.1,3033.7,0.001]
[1764329581798,7.32889917,3034.1,3033.7,0.001]
[1764329581994,6.93957564,3034.1,3033.7,0.001]
[1764329583504,6.34987564,3034.1,3033.7,0.001]
[1764329583709,7.2504878,3034.1,3033.7,0.001]
[1764329583909,7.31787564,3034.1,3033.7,0.001]
[1764329586503,8.88773985,3034.1,3033.7,0.001]
[1764329586721,9.01980862,3034.1,3033.7,0.001]
[1764329587933,15.39620862,3034.1,3033.7,0.001]
[1764329589941,15.98000988,3034.1,3033.7,0.001]
[1764329590145,20.66968455,3034.1,3033.7,0.001]
[1764329590438,6.03010431,3033.8,3033.7,0.001]
[1764329590608,31.03856617,3033.8,3033.7,0.001]
[1764329590806,31.49115401,3033.8,3033.7,0.001]
[1764329591014,30.37557416,3033.8,3033.7,0.001]
[1764329591224,29.01658016,3033.8,3033.7,0.001]
[1764329591423,27.89436616,3033.8,3033.7,0.001]
[1764329591627,22.81605516,3033.8,3033.7,0.001]
[1764329592215,31.02822116,3033.8,3033.7,0.001]
[1764329592421,27.27443816,3033.8,3033.7,0.001]
[1764329592625,18.92639316,3033.8,3033.7,0.001]
[1764329592821,14.15815631,3033.8,3033.7,0.001]
[1764329593144,11.41869146,3033.8,3033.7,0.001]
[1764329593445,11.82419546,3033.8,3033.7,0.001]
[1764329593814,12.29453633,3033.8,3033.7,0.001]
[1764329594015,12.16242918,3033.8,3033.7,0.001]
[1764329594319,12.28402918,3033.8,3033.7,0.494]
[1764329594645,11.40818431,3033.8,3033.7,0.494]
[1764329595144,11.40818431,3033.8,3033.7,0.001]
[1764329595145,11.90158431,3033.8,3033.7,0.001]
[1764329595310,12.35978431,3033.8,3033.7,0.001]
[1764329595649,12.76528831,3033.8,3033.7,0.001]
[1764329596129,13.1827646,3033.8,3033.7,0.001]
[1764329596637,13.6409646,3033.8,3033.7,0.001]
[1764329597315,12.5897646,3033.8,3033.7,0.001]
[1764329597650,11.71408831,3033.8,3033.7,0.001]
[1764329597838,10.5829902,3033.8,3033.7,0.494]
[1764329598017,11.30858431,3033.8,3033.7,0.494]
[1764329600215,1.63598813,3033.8,3033.7,0.9823]
[1764329600546,4.93218431,3033.8,3033.7,0.9823]
[1764329600852,0.91039402,3033.8,3033.7,0.9823]
[1764329601012,0.21,3033.8,3033.7,0.9823]
[1764329601218,0.21,3033.8,3033.7,1.4102807]
[1764329601534,0.03421216,3034.1,3033.7,1.4102807]
[1764329601535,0.212,3034.1,3033.7,4.27860484]
[1764329601732,0.212,3034.1,3034.0,0.493]
[1764329602124,0.51610043,3034.1,3034.0,0.9813]
[1764329604123,0.51610043,3034.1,3034.0,4.2772789]
[1764329604921,0.51610043,3034.1,3034.0,0.9813]
[1764329605121,0.51610043,3034.1,3034.0,4.70502795]
[1764329607415,0.30610043,3034.1,3034.0,4.70502795]
[1764329609242,0.002,3034.1,3034.0,5.43062206]
[1764329610631,0.002,3034.1,3034.0,4.70502795]
[1764329610841,0.002,3034.1,3033.7,0.001]
[1764329610842,0.5546,3034.1,3033.7,0.001]
[1764329611025,0.4894,3033.8,3033.7,0.001]
[1764329611340,0.89244411,3033.8,3033.7,0.001]
[1764329611533,1.75614811,3033.8,3033.7,0.001]
[1764329611854,2.45499375,3033.8,3033.7,0.001]
[1764329612038,2.86384138,3033.8,3033.7,0.001]
[1764329612962,6.16003756,3033.8,3033.7,0.001]
[1764329613733,6.37003756,3033.8,3033.7,0.001]
[1764329613945,6.40224972,3033.8,3033.7,0.001]
[1764329614366,6.40144972,3033.8,3033.7,0.001]
[1764329614761,5.94324972,3033.8,3033.7,0.001]
[1764329615265,6.40144972,3033.8,3033.7,0.001]
[1764329616273,6.40112318,3033.8,3033.7,0.001]
[1764329616943,5.94292318,3033.8,3033.7,0.001]
[1764329617766,12.77752318,3033.8,3033.7,0.001]
[1764329617953,12.74531102,3033.8,3033.7,0.001]
[1764329618151,13.47090513,3033.8,3033.7,0.001]
[1764329618541,13.57090513,3033.8,3033.7,0.001]
[1764329618730,13.47090513,3033.8,3033.7,0.001]
[1764329619334,14.63901536,3033.8,3033.7,0.001]
[1764329619564,14.77111946,3033.8,3033.7,0.001]
[1764329619864,17.01608911,3033.7,3033.6,0.001]
[1764329620068,11.27398843,3033.7,3033.6,0.001]
[1764329620469,23.57035511,3033.7,3033.6,0.001]
[1764329620967,12.01262311,3033.7,3033.6,0.001]
[1764329621338,15.30892795,3033.7,3033.6,0.001]
[1764329621566,15.44105038,3033.7,3033.6,0.001]
[1764329621933,17.52344638,3033.7,3033.6,0.001]
[1764329622576,15.44269438,3033.7,3033.6,0.001]
[1764329622961,15.91822538,3033.7,3033.6,0.001]
[1764329623169,14.60154791,3033.7,3033.6,0.001]
[1764329623468,13.43882338,3033.7,3033.6,0.001]
[1764329623977,6.40292209,3033.7,3033.6,0.001]
[1764329624265,7.16072836,3033.7,3033.6,0.001]
[1764329624569,7.1485162,3033.7,3033.6,0.001]
[1764329625068,13.9304202,3033.7,3033.6,0.001]
[1764329627671,17.2056102,3033.7,3033.6,0.001]
[1764329627852,13.9304202,3033.7,3033.6,0.001]
[1764329628476,13.3539202,3033.7,3033.6,0.001]
[1764329628645,13.8288202,3033.7,3033.6,0.001]
[1764329628846,14.3070202,3033.7,3033.6,0.001]
[1764329633646,12.14788859,3033.7,3033.6,0.4512]
[1764329633970,11.44936949,3033.7,3033.6,0.4512]
[1764329634181,11.74159545,3033.7,3033.6,0.4512]
[1764329634381,11.74159545,3033.7,3033.6,0.001]
[1764329634583,11.84119545,3033.7,3033.6,0.001]
[1764329634747,11.84119545,3033.7,3033.6,0.4512]
[1764329636478,11.74159545,3033.7,3033.6,0.4512]
[1764329636992,11.84119545,3033.7,3033.6,0.4512]
[1764329637946,12.31609545,3033.7,3033.6,0.001]
[1764329638273,11.84119545,3033.7,3033.6,0.001]
[1764329638484,12.31529545,3033.7,3033.6,0.001]
[1764329639892,11.84039545,3033.7,3033.6,0.4512]
[1764329640182,12.71251981,3033.7,3033.6,0.4512]
[1764329640382,12.71251981,3033.7,3033.6,0.001]
[1764329640383,13.18741981,3033.7,3033.6,0.001]
[1764329640587,13.18741981,3033.7,3033.6,0.4512]
[1764329640588,12.71251981,3033.7,3033.6,0.4512]
[1764329641259,12.31529545,3033.7,3033.6,0.001]
[1764329641466,14.36172398,3033.7,3033.6,0.001]
[1764329641760,12.61712417,3033.7,3033.6,0.9503]
[1764329641963,11.75940763,3033.7,3033.6,0.9503]
[1764329642169,10.88307891,3033.7,3033.6,0.9503]
[1764329642400,7.58677407,3033.7,3033.6,0.9503]
[1764329642603,0.002,3034.1,3033.6,7.543127]
[1764329642805,0.002,3034.1,3034.0,0.4502]
[1764329642979,0.002,3034.1,3034.0,0.38538]
[1764329643177,0.002,3034.1,3034.0,0.88448]
[1764329643379,0.002,3034.2,3034.0,0.88448]
[1764329643607,0.002,3034.2,3034.1,1.1078]
[1764329644174,0.002,3034.2,3034.1,4.40367027]
[1764329644373,0.002,3034.2,3034.1,5.17363487]
[1764329648272,0.002,3034.5,3034.1,5.17363487]
[1764329648609,0.002,3034.5,3034.4,0.4502]
[1764329648979,0.002,3034.5,3034.4,0.9493]
[1764329650814,0.002,3034.5,3034.4,0.9186]
[1764329651011,0.002,3034.5,3034.4,1.34003236]
[1764329651207,0.002,3034.5,3034.4,0.9186]
[1764329651911,0.002,3034.5,3034.4,0.4502]
[1764329652405,0.002,3034.5,3034.4,0.9186]
[1764329653007,0.4639,3034.5,3034.1,0.1585]
[1764329653178,0.24221216,3034.4,3034.1,0.1585]
[1764329653506,0.21,3034.4,3034.1,0.1585]
[1764329653706,0.03421216,3034.5,3034.3,0.4533]
[1764329653910,0.002,3034.5,3034.4,0.4533]
[1764329654208,3.50743582,3034.5,3034.4,0.9389]
[1764329654802,3.81026565,3034.5,3034.4,0.9389]
[1764329655304,0.51482983,3034.5,3034.4,0.9389]
[1764329655513,0.212,3034.5,3034.4,0.9389]
[1764329655804,3.97793582,3034.5,3034.1,0.1585]
[1764329656005,0.0996,3034.4,3034.1,0.1585]
[1764329656389,0.212,3034.5,3034.3,0.4533]
[1764329656585,0.212,3034.5,3034.4,0.4533]
[1764329657100,0.212,3034.5,3034.4,0.9389]
[1764329657314,0.51482847,3034.5,3034.4,0.9389]
[1764329657821,3.81026429,3034.5,3034.4,0.9389]
[1764329658009,3.81026429,3034.5,3034.4,0.4533]
[1764329658625,0.51482847,3034.5,3034.4,0.4533]
[1764329659125,3.81026429,3034.5,3034.4,0.4533]
[1764329659491,0.51482847,3034.5,3034.4,0.4533]
[1764329660124,0.51482847,3034.5,3034.4,0.9389]
[1764329660419,0.212,3034.5,3034.4,0.9389]
[1764329660998,0.212,3034.5,3034.4,4.23444442]
[1764329662020,0.002,3034.5,3034.4,4.9907579]
[1764329662316,0.002,3034.5,3034.4,1.69521348]
[1764329662519,0.002,3034.5,3034.4,4.9907579]
[1764329662818,0.0012,3034.5,3034.4,4.9907579]
[1764329663026,0.0012,3034.5,3034.4,1.69521348]
[1764329663206,0.0012,3034.5,3034.4,0.9389]
[1764329663405,0.0012,3034.5,3034.4,4.23444442]
[1764329664512,0.0012,3034.5,3034.4,0.9389]
[1764329664699,0.0012,3034.5,3034.4,4.23544442]
[1764329665115,0.0012,3034.5,3034.4,0.9399]
[1764329665628,0.0012,3034.5,3034.4,4.23544442]
[1764329665924,0.0012,3034.5,3034.4,4.98855812]
[1764329667517,0.0012,3034.5,3034.4,5.02151356]
[1764329671630,0.0012,3034.5,3034.4,4.98855812]
[1764329673436,0.30578757,3034.5,3034.4,4.98855812]
[1764329673649,0.30578757,3034.5,3034.4,4.50295812]
[1764329673807,0.30578757,3034.5,3034.4,0.4543]
[1764329674007,0.77628757,3034.5,3034.4,0.001]
[1764329674333,0.77628757,3034.5,3034.4,0.4543]
[1764329674334,0.30578757,3034.5,3034.4,0.4543]
[1764329675109,0.30578757,3034.5,3034.4,3.74984442]
[1764329675840,0.30578757,3034.5,3034.4,0.4543]
[1764329676176,0.30578757,3034.5,3034.4,0.001]
[1764329676344,0.77628757,3034.5,3034.4,0.001]
[1764329676711,0.77627037,3034.5,3034.4,0.001]
[1764329677952,4.56360619,3034.5,3034.4,0.001]
[1764329678128,5.34968949,3034.5,3034.4,0.001]
[1764329678326,5.44928949,3034.5,3034.4,0.001]
[1764329678638,1.56235367,3034.5,3034.4,0.001]
[1764329679554,0.30577037,3034.5,3034.4,0.4543]
[1764329681350,0.77737037,3034.5,3034.4,0.001]
[1764329682450,1.27137037,3034.5,3034.4,0.001]
[1764329683754,4.56680619,3034.5,3034.4,0.001]
[1764329683955,4.66640619,3034.5,3034.4,0.001]
[1764329684126,5.46278027,3034.5,3034.4,0.001]
[1764329684328,5.36318027,3034.5,3034.4,0.001]
[1764329685452,5.46278027,3034.5,3034.4,0.001]
[1764329686937,5.49419243,3034.5,3034.4,0.001]
[1764329690972,1.70475661,3034.5,3034.4,0.001]
[1764329691120,5.39894588,3034.5,3034.4,0.001]
[1764329692944,5.80444988,3034.5,3034.4,0.001]
[1764329693133,6.53004399,3034.5,3034.4,0.001]
[1764329694242,7.40561916,3034.5,3034.4,0.001]
[1764329694465,7.373407,3034.5,3034.4,0.001]
[1764329694627,8.55675315,3034.5,3034.4,0.001]
[1764329694969,0.72559411,3034.4,3033.7,4.296e-05]
[1764329695167,0.54578253,3034.3,3033.7,4.296e-05]
[1764329695470,0.51357037,3034.2,3033.7,4.296e-05]
[1764329695664,0.33678253,3034.1,3033.7,4.296e-05]
[1764329695972,0.30457037,3034.0,3033.7,4.296e-05]
[1764329696167,0.30457037,3033.9,3033.7,4.296e-05]
[1764329696337,0.5128999,3033.8,3033.7,4.296e-05]
[1764329696739,0.5128999,3033.8,3033.7,0.47824296]
[1764329698364,0.9844999,3033.8,3033.7,4.296e-05]
[1764329698773,0.5128999,3033.8,3033.7,4.296e-05]
[1764329699175,0.5128999,3033.8,3033.7,0.47824296]
[1764329700168,4.28069608,3033.8,3033.7,4.296e-05]
[1764329700471,5.10662917,3033.8,3033.7,4.296e-05]
[1764329700858,5.20622917,3033.8,3033.7,4.296e-05]
[1764329701059,5.20623999,3033.8,3033.7,4.296e-05]
[1764329701577,7.06967144,3033.8,3033.7,4.296e-05]
[1764329701763,7.03745928,3033.8,3033.7,4.296e-05]
[1764329702654,11.73807947,3033.8,3033.7,4.296e-05]
[1764329703454,6.63195528,3033.8,3033.7,4.296e-05]
[1764329703855,6.03835528,3033.8,3033.7,4.296e-05]
[1764329704176,6.56456744,3033.8,3033.7,4.296e-05]
[1764329704747,6.66416744,3033.8,3033.7,4.296e-05]
[1764329704958,6.63195528,3033.8,3033.7,4.296e-05]
[1764329705675,11.33257547,3033.8,3033.7,4.296e-05]
[1764329706885,3.7412631,3033.8,3033.7,4.296e-05]
[1764329707050,11.73807947,3033.8,3033.7,4.296e-05]
[1764329708262,12.61360025,3033.8,3033.7,4.296e-05]
[1764329710047,12.71360025,3033.8,3033.7,4.296e-05]
[1764329710755,12.61360025,3033.8,3033.7,4.296e-05]
[1764329711268,12.61280025,3033.8,3033.7,4.296e-05]
[1764329711447,7.81258006,3033.8,3033.7,4.296e-05]
[1764329711653,7.91218006,3033.8,3033.7,4.296e-05]
[1764329712386,7.03665928,3033.8,3033.7,4.296e-05]
[1764329712596,13.41305928,3033.8,3033.7,4.296e-05]
[1764329712757,17.86064128,3033.8,3033.7,4.296e-05]
[1764329713555,17.86027282,3033.8,3033.7,4.296e-05]
[1764329714900,13.41269082,3033.8,3033.7,4.296e-05]
[1764329715086,13.38519082,3033.8,3033.7,4.296e-05]
[1764329717792,13.38719082,3033.8,3033.7,4.296e-05]
[1764329719595,13.48719082,3033.8,3033.7,4.296e-05]
[1764329720094,13.38719082,3033.8,3033.7,4.296e-05]
[1764329720772,14.54991535,3033.8,3033.7,4.296e-05]
[1764329722388,10.19099464,3033.8,3033.7,4.296e-05]
[1764329722594,18.18781101,3033.8,3033.7,4.296e-05]
[1764329722796,18.08781101,3033.8,3033.7,4.296e-05]
[1764329723190,22.82989734,3033.8,3033.7,4.296e-05]
[1764329723401,21.07782701,3033.8,3033.7,4.296e-05]
[1764329723695,21.17782701,3033.8,3033.7,4.296e-05]
[1764329724263,24.65282701,3033.8,3033.7,4.296e-05]
[1764329724767,8.00200295,3033.7,3033.6,0.001]
[1764329725080,10.81751254,3033.7,3033.6,0.001]
[1764329725487,51.99453273,3033.7,3033.6,0.001]
[1764329725788,44.20693849,3033.4,3033.3,0.001]
[1764329725989,47.34215879,3033.4,3033.3,0.001]
[1764329726177,43.1018386,3033.4,3033.3,0.001]
[1764329726384,43.43377169,3033.4,3033.3,0.001]
[1764329726579,44.8484758,3033.4,3033.3,0.001]
[1764329726779,48.14510664,3033.4,3033.3,0.001]
[1764329726980,35.79861864,3033.4,3033.3,0.001]
[1764329727169,35.34261864,3033.4,3033.3,0.001]
[1764329727498,35.96766178,3033.4,3033.3,0.001]
[1764329728193,30.97646178,3033.4,3033.3,0.001]
[1764329728720,26.99180378,3033.4,3033.3,0.001]
[1764329728988,19.19514978,3033.4,3033.3,0.001]
[1764329729187,26.99180378,3033.4,3033.3,0.001]
[1764329730098,19.19514978,3033.4,3033.3,0.001]
[1764329730297,19.19514978,3033.4,3033.3,0.4844]
[1764329730298,11.83382148,3033.4,3033.3,0.4844]
[1764329730516,12.07625791,3033.4,3033.3,0.9476]
[1764329730665,11.61128839,3033.4,3033.3,0.9476]
[1764329731010,10.88569428,3033.4,3033.3,0.9476]
[1764329731372,10.88569428,3033.4,3033.3,0.4844]
[1764329731565,10.98529428,3033.4,3033.3,0.9476]
[1764329732299,10.98529428,3033.4,3033.3,0.4844]
[1764329732503,11.39079828,3033.4,3033.3,0.4844]
[1764329732898,11.39079828,3033.4,3033.3,0.9476]
[1764329733611,10.98529428,3033.4,3033.3,0.9476]
[1764329734106,10.98529428,3033.4,3033.3,0.4844]
[1764329734479,10.98529428,3033.4,3033.3,0.9476]
[1764329734680,10.98529428,3033.4,3033.3,0.4844]
[1764329735078,11.47199428,3033.4,3033.3,0.001]
[1764329735282,11.71088839,3033.4,3033.3,0.001]
[1764329735476,11.71008839,3033.4,3033.3,0.001]
[1764329736286,13.06259239,3033.4,3033.3,0.001]
[1764329736486,13.93859275,3033.4,3033.3,0.001]
[1764329736683,13.06259239,3033.4,3033.3,0.001]
[1764329736887,14.23044799,3033.4,3033.3,0.001]
[1764329738484,13.92770573,3033.4,3033.3,0.001]
[1764329738899,12.66025013,3033.4,3033.3,0.001]
[1764329739212,12.75985013,3033.4,3033.3,0.001]
[1764329739784,12.29955013,3033.4,3033.3,0.001]
[1764329740412,13.46849393,3033.4,3033.3,0.001]
[1764329740617,12.98179393,3033.4,3033.3,0.001]
[1764329740914,13.11390152,3033.4,3033.3,0.001]
[1764329741418,13.61150152,3033.4,3033.3,0.001]
[1764329742215,14.10870152,3033.4,3033.3,0.001]
[1764329743315,12.57628993,3033.4,3033.3,0.6478]
[1764329743619,11.40734613,3033.4,3033.3,0.6478]
[1764329747018,11.40734613,3033.4,3033.3,0.001]
[1764329747019,11.90494613,3033.4,3033.3,0.001]
[1764329747514,11.71160368,3033.4,3033.3,0.001]
[1764329747816,11.71160368,3033.4,3033.3,0.467]
[1764329748612,16.41352407,3033.4,3033.3,0.467]
[1764329752596,16.41552407,3033.4,3033.3,0.467]
[1764329753924,6.68265755,3033.4,3033.3,0.9558]
[1764329754094,6.89165755,3033.4,3033.3,0.9558]
[1764329754726,6.89165755,3033.4,3033.3,1.39925477]
[1764329754894,0.51525755,3033.4,3033.3,1.39925477]
[1764329755096,0.51525755,3033.4,3033.3,4.25253952]
[1764329755824,0.51525755,3033.4,3033.3,0.9558]
[1764329756226,0.51525755,3033.4,3033.3,4.25253952]
[1764329756528,0.51525755,3033.4,3033.3,0.9558]
[1764329756700,0.51525755,3033.4,3033.3,1.39924255]
[1764329758229,0.51525755,3033.4,3033.3,4.69598207]
[1764329758435,0.002,3034.1,3033.7,0.466]
[1764329758621,0.002,3034.1,3034.0,0.466]
[1764329759128,0.002,3034.1,3034.0,0.9548]
[1764329759314,0.002,3034.1,3034.0,1.37988844]
[1764329759513,0.002,3034.1,3034.0,4.67586734]
[1764329759712,0.0012,3034.1,3034.0,4.67586734]
[1764329760029,0.0012,3034.1,3034.0,1.37988844]
[1764329760229,0.0012,3034.1,3034.0,0.466]
[1764329761304,0.0012,3034.1,3034.0,0.9548]
[1764329761629,0.002,3034.2,3034.0,4.2507789]
[1764329761831,0.002,3034.2,3034.1,1.1127]
[1764329763131,0.002,3034.2,3034.1,4.40857027]
[1764329763328,0.002,3034.2,3034.1,5.17902519]
[1764329767127,0.002,3034.2,3034.1,5.21198389]
[1764329776440,0.002,3034.2,3034.1,1.23645492]
[1764329776637,0.4805,3034.2,3034.0,0.001]
[1764329776820,0.4805,3034.2,3034.0,3.29692059]
[1764329777020,0.002,3034.2,3034.0,6.59289949]
[1764329778120,0.002,3034.2,3034.0,0.001]
[1764329778553,0.002,3034.2,3034.1,0.4523]
[1764329778863,0.002,3034.2,3034.0,0.001]
[1764329779530,0.485,3034.1,3034.0,0.001]
[1764329779731,0.9441,3034.1,3034.0,0.001]
[1764329779937,1.34620629,3034.1,3034.0,0.001]
[1764329780163,4.64207656,3034.1,3034.0,0.001]
[1764329780331,1.34620629,3034.1,3034.0,0.001]
[1764329780647,1.24660629,3034.1,3034.0,0.001]
[1764329781232,0.78750629,3034.1,3034.0,0.001]
[1764329781425,0.30250629,3034.1,3034.0,0.4893]
[1764329782064,0.30250629,3034.1,3034.0,0.001]
[1764329782935,4.64207656,3034.1,3034.0,0.001]
[1764329783254,1.34620629,3034.1,3034.0,0.001]
[1764329784059,0.78670629,3034.1,3034.0,0.001]
[1764329784626,1.24580629,3034.1,3034.0,0.001]
[1764329785134,0.78670629,3034.1,3034.0,0.001]
[1764329786132,0.30170629,3034.1,3034.0,0.9532]
[1764329786653,0.30170629,3034.1,3034.0,0.52225978]
[1764329786858,0.30170629,3034.1,3034.0,0.9532]
[1764329787155,0.30170629,3034.1,3034.0,4.2491789]
[1764329787351,0.30170629,3034.1,3034.0,3.7852789]
[1764329787557,0.30370629,3034.1,3034.0,3.7852789]
[1764329787967,0.30370629,3034.1,3034.0,5.00370474]
[1764329788445,0.002,3034.1,3034.0,5.00370474]
[1764329790030,0.002,3034.1,3034.0,1.24382584]
[1764329790231,0.002,3034.1,3034.0,0.4893]
[1764329790736,0.002,3034.1,3034.0,3.7852789]
[1764329791160,0.002,3034.1,3034.0,4.2491789]
[1764329792073,0.002,3034.1,3034.0,3.7852789]
[1764329792280,0.002,3034.1,3034.0,4.2491789]
[1764329793062,0.002,3034.1,3034.0,5.00370526]
[1764329793460,0.002,3034.1,3034.0,4.53980526]
[1764329794260,0.002,3034.1,3034.0,5.00370526]
[1764329796073,0.3060079,3034.1,3034.0,5.00370526]
[1764329798079,0.3060079,3034.1,3034.0,4.53980526]
[1764329798286,0.3060079,3034.1,3034.0,5.00370526]
[1764329798682,0.3060079,3034.1,3034.0,4.53980526]
[1764329798876,0.3060079,3034.1,3034.0,5.00370526]
[1764329799277,0.002,3034.1,3034.0,11.07508418]
[1764329799587,0.002,3034.1,3034.0,11.0421244]
[1764329801074,0.002,3034.2,3034.1,0.72559411]
[1764329801284,0.002,3034.2,3034.1,3.68843102]
[1764329801863,0.002,3034.6,3034.5,0.405504]
[1764329802068,0.002,3034.8,3034.7,0.405504]
[1764329802269,0.002,3034.8,3034.7,1.37445618]
[1764329802878,0.002,3034.8,3034.7,2.10005029]
[1764329803188,0.002,3034.8,3034.7,3.53241228]
[1764329803394,0.002,3034.8,3034.7,3.4994601]
[1764329804094,0.002,3035.4,3035.3,0.72559411]
[1764329804394,0.002,3035.4,3035.3,5.88521514]
[1764329804695,0.002,3035.4,3035.3,1.66159411]
[1764329804871,0.002,3035.4,3035.3,2.50758868]
[1764329805773,0.002,3035.4,3035.3,2.03288868]
[1764329805990,0.002,3035.4,3035.3,2.50758868]
[1764329806286,0.002,3035.4,3035.3,5.80215593]
[1764329807063,0.002,3035.4,3035.3,5.8351016]
[1764329807700,0.002,3035.4,3035.3,5.80215593]
[1764329808270,0.0012,3035.4,3035.3,5.80215593]
[1764329808472,0.0012,3035.4,3035.3,5.8296916]
[1764329809570,0.0012,3035.4,3035.3,5.79674593]
[1764329809793,0.0012,3035.4,3035.3,5.8296916]
[1764329810005,0.0012,3035.4,3035.3,6.0386916]
[1764329810584,0.0012,3035.4,3035.3,5.79674593]
[1764329810775,0.0012,3035.4,3035.3,6.00574593]
[1764329811704,0.0012,3035.4,3035.3,5.79674593]
[1764329811900,0.0012,3035.4,3035.3,6.00574593]
[1764329812106,0.0012,3035.4,3035.3,6.0386916]
[1764329812906,0.0012,3035.4,3035.3,6.4441956]
[1764329813083,0.0012,3035.4,3035.3,6.41124993]
[1764329814893,0.0012,3035.4,3035.3,6.4441956]
[1764329815409,0.0012,3035.4,3035.3,6.41124993]
[1764329815611,0.0012,3035.4,3035.3,6.4441956]
[1764329816807,0.0012,3035.4,3035.3,6.41124993]
[1764329819812,0.0012,3035.4,3035.3,5.69106582]
[1764329820111,0.0012,3035.4,3035.3,4.86615593]
[1764329820305,0.5,3035.4,3035.3,5.07515593]
[1764329821101,0.0012,3035.4,3035.3,4.86615593]
[1764329821283,0.0012,3035.4,3035.3,5.1081016]
[1764329821484,0.0012,3035.4,3035.3,6.0441016]
[1764329821678,0.0012,3035.4,3035.3,6.4496056]
[1764329821879,0.0012,3035.4,3035.3,5.94195993]
[1764329822084,0.0012,3035.4,3035.3,16.41665993]
[1764329822631,0.0012,3035.4,3035.3,16.41765993]
[1764329826846,0.5,3035.4,3035.3,11.97809268]
[1764329826990,0.9931,3035.4,3035.3,10.001]
[1764329827196,1.29560063,3035.4,3035.3,10.001]
[1764329827925,4.59005935,3035.4,3035.3,10.001]
[1764329828113,4.68965935,3035.4,3035.3,10.001]
[1764329828306,5.48826057,3035.4,3035.3,10.001]